Cogmind - Beta 14 @@@ ROGUE MODE // 2024.08.06 @ 19:47:13 Player: polar Result: Destroyed by TC-Y3K(R) with Subdweller Machine Gun Performance ------------- Evolutions (0) 0 Regions Visited (2) 400 Robots Destroyed (28) 140 Value Destroyed (769) 769 Prototype IDs (0) 0 Alien Tech Used (0) 0 Bonus (-58) -58 TOTAL SCORE: 1251 Bonus ------- Friendly Fire -58 Cogmind --------- Core Integrity 0/250 Matter 290/300 Energy 98/100 System Corruption 0% Temperature Cool (0) Movement Rolling (110) Ox2 Location -10/Subcaves Parts ------- > --- POWER (1) -------- (None) > --- PROPULSION (2) --- Light Treads Wheel > --- UTILITY (2) ------ Large Storage Unit Makeshift Kinetic Plating > --- WEAPON (2) ------- Makeshift Hammer > --- INVENTORY (15) --- Compact Wheel Subdweller Monowheel Subdweller Optics Subdweller Optics Scrap Shield Subdweller Laser Subdweller Laser Subdweller Laser Subdweller Machine Gun Subdweller Machine Gun Subdweller Machine Gun Subdweller Shrapnel Launcher Peak State ------------ > --- POWER ------------ Light Nuclear Core > --- PROPULSION ------- Light Treads Light Treads > --- UTILITY ---------- Large Storage Unit Seismic Detector > --- WEAPON ----------- Light EM Pulse Cannon Makeshift Hammer > --- INVENTORY -------- Ion Engine Wheel Compact Wheel Subdweller Monowheel Subdweller Optics Scrap Shield Particle Gun Particle Gun Subdweller Laser Assault Rifle Assault Rifle Subdweller Shrapnel Launcher [Rating: 15] Favorites ----------- Power Light Nuclear Core Engine Ion Engine Power Core Light Nuclear Core Propulsion Light Treads Treads Light Treads Wheel Wheel Utility Seismic Detector Device Seismic Detector Storage Large Storage Unit Protection Makeshift Kinetic Plating Weapon Grenade Launcher Energy Gun Medium Laser Energy Cannon Light EM Pulse Cannon Ballistic Gun Assault Rifle Launcher Grenade Launcher Impact Weapon Makeshift Hammer Build | -11 -10 -10 ------- Run | Yrd Mat Sub Slots Evolved . | . . . Power . | . . . Propulsion . | . . . Utility . | . . . Weapon . | . . . Parts Attached 30 | 9 8 13 Power 3 | 1 1 1 Engine 2 | 1 . 1 Core 1 | . 1 . Reactor . | . . . Propulsion 6 | 3 2 1 Treads 3 | 1 2 . Leg . | . . . Wheel 3 | 2 . 1 Hover . | . . . Flight . | . . . Utility 4 | 2 1 1 Device 1 | 1 . . Storage 2 | 1 1 . Processor . | . . . Hackware . | . . . Protection 1 | . . 1 Artifact . | . . . Weapon 17 | 3 4 10 Energy Gun 3 | 2 1 . Energy Cannon 3 | . . 3 Ballistic Gun 3 | 1 . 2 Ballistic Cannon . | . . . Launcher 3 | . 2 1 Special Weapon . | . . . Impact Weapon 5 | . 1 4 Slashing Weapon . | . . . Piercing Weapon . | . . . Special Melee Weapon . | . . . Unidentified Prototypes . | . . . Parts Lost 6 | . . 6 Power 1 | . . 1 Propulsion 1 | . . 1 Utility 1 | . . 1 Weapon 3 | . . 3 Highest Loss Streak 4 | . . 4 To Critical Strikes . | . . . Average Slot Usage (%) 98 | . 99 98 Engine 2 | . 1 4 Core 10 | . 12 9 Treads 27 | . 27 27 Device 13 | . 14 13 Storage 14 | . 14 14 Energy Gun 3 | . 6 . Energy Cannon 5 | . . 9 Ballistic Gun 2 | . 1 3 Launcher 7 | . 12 3 Impact Weapon 8 | . 7 9 Peak Build Rating 15 | 7 10 15 Average Rating 11 | 4 9 13 On Entrance 5 | . 7 10 Naked Turns . | . . . Heaviest Build 38 | 12 31 38 Greatest Support 40 | 20 40 40 Greatest Overweight (x) 2 | 1 1 2 Average Overweight (x) . | . . . Largest Inventory Capacity 15 | 8 15 15 Average Capacity 14 | 6 13 15 Most Carried 15 | 4 12 15 Average Carried 11 | 2 9 14 Final Capacity 15 | 8 15 15 Final Carried 13 | 4 11 13 Class Distribution -------------------- 100% | Mutant Dominant Class ---------------- Mutant | -10/Materials Mutant | -10/Subcaves Resources | -11 -10 -10 ----------- Run | Yrd Mat Sub Matter Collected 870 | 288 180 402 Remotely . | . . . Salvage Created 634 | 30 307 297 Parts 55 | 7 25 23 Haulers Intercepted 1 | . 1 . Recyclers Shooed . | . . . Parts Field Recycled . | . . . Retrieved Matter . | . . . Parts Self-Destructed 11 | . . 11 Prevented . | . . . Kills | -11 -10 -10 ------- Run | Yrd Mat Sub Combat Hostiles Destroyed 22 | . 13 9 Melee 2 | . . 2 Guns 3 | . 2 1 Cannons 2 | . . 2 AOE 14 | . 11 3 Classes Destroyed 8 | 1 4 3 Tunneler 2 | 2 . . Hauler 1 | . 1 . Operator 1 | . . 1 Watcher 2 | . 2 . Swarmer 6 | . 6 . Grunt 7 | . 7 . Cobbler 1 | . . 1 Subdweller 9 | . . 9 Best Kill Streak 4 | 2 4 3 Combat Bots Only 3 | . 3 3 Max Kills in Single Turn 3 | 1 3 1 Gunslinging . | . . . Exploded 3 | . 3 1 Melee 1 | . . 1 Uniques/NPCs Destroyed . | . . . Combat | -11 -10 -10 -------- Run | Yrd Mat Sub Hostile Shots Fired 74 | . 28 46 Missed 23 | . 14 9 Damage Taken 1101 | . 162 939 Core 263 | . 26 237 Absorbed by Shields . | . . . Ignored by Resistances 7 | . . 7 Regen/Repaired (Parts) 182 | . 182 . Core Remaining (%) 100 | 100 . . Volleys Fired 57 | 2 27 28 Largest 2 | 2 2 2 Hottest 96 | 60 80 96 Shots Fired 96 | 4 50 42 Gun 41 | 4 31 6 Cannon 24 | . . 24 Launcher 31 | . 19 12 Special . | . . . Kinetic 21 | 2 8 11 Thermal 25 | 2 23 . Explosive 26 | . 19 7 Electromagnetic 24 | . . 24 Robot Hit Streak 7 | 1 7 5 Robot Miss Streak 3 | 1 3 2 Penetration Max . | . . . Secondary Targets . | . . . Shots Hit Robots 66 | 2 20 44 Core Hits 40 | 2 24 14 Critical Kills 1 | . . 1 Critical Parts Destroyed 1 | . . 1 Critical Strikes 3 | . . 3 Destroy 1 | . . 1 Smash 2 | . . 2 Melee Attacks 96 | . 41 55 Impact 96 | . 41 55 Slashing . | . . . Piercing . | . . . Sneak Attacks . | . . . Combat Hostiles . | . . . Follow-up Attacks . | . . . Damage Inflicted 2596 | 41 1011 1544 Guns 299 | 41 210 48 Cannons 245 | . . 245 Explosions 1370 | . 801 569 Melee 682 | . . 682 Ramming . | . . . Kinetic 400 | 30 78 292 Thermal 163 | 11 132 20 Explosive 1106 | . 801 305 Electromagnetic 245 | . . 245 Impact 682 | . . 682 Slashing . | . . . Piercing . | . . . Highest Corruption . | . . . Average Corruption . | . . . Corruption Purged . | . . . Corruption Blocked . | . . . Overload Shots . | . . . Overflow Damage 127 | . 3 124 Projectiles 8 | . . 8 Explosions 3 | . 3 . Melee 116 | . . 116 Knockbacks 3 | . . 3 Impact 3 | . . 3 Kinetic . | . . . Secondary . | . . . Self-Inflicted Damage 90 | . 1 89 Shots 5 | . 1 4 Rammed . | . . . Targets Rammed . | . . . Kicked . | . . . Crushed . | . . . Highest Temperature 108 | . 108 2 Average Temperature 37 | . 38 2 Received Heat Transfer 183 | . 69 114 Siege Activations . | . . . Robots Corrupted 2 | . . 2 Combat Hostiles 1 | . . 1 Parts Fried 2 | . . 2 Impact Corruptions 6 | . . 6 Robots Melted . | . . . Combat Hostiles . | . . . Parts Melted 2 | . 1 1 Heat Transferred 445 | 25 370 50 Parts Sabotaged . | . . . Parts Stolen . | . . . Parts Stripped . | . . . Power Chain Reactions 1 | . . 1 Alert | -11 -10 -10 ------- Run | Yrd Mat Sub Peak Influence 355 | 10 355 . Initial 6 | . 6 . Average 211 | 2 221 . Maximum Alert Level 1 | . 1 . Low Security (%) 36 | 100 33 . Level 1 63 | . 66 . Level 2 . | . . . Level 3 . | . . . Level 4 . | . . . Level 5 . | . . . High Security . | . . . Max Security . | . . . Squads Dispatched 4 | . 4 . Investigation 2 | . 2 . Extermination . | . . . Reinforcement 2 | . 2 . Assault . | . . . Garrison . | . . . Intercept . | . . . Searches Triggered . | . . . Construction Impeded . | . . . Haulers Reinforced . | . . . Active Scanning Responses . | . . . Cargo Convoy Interrupts . | . . . Stealth | -11 -10 -10 --------- Run | Yrd Mat Sub Distress Signals 2 | . 2 . Communications Jammed . | . . . Distress Signals . | . . . Times Spotted 31 | . 22 9 Peak Tracking Total 4 | . 4 2 Tactical Retreats 1 | . 1 . Traps | -11 -10 -10 ------- Run | Yrd Mat Sub Traps Triggered 2 | . 1 1 Indirectly . | . . . Trap Hack Attempts . | . . . Triggered . | . . . Disarmed . | . . . Reprogrammed . | . . . Reused . | . . . Traps Extracted . | . . . Installed . | . . . Triggered . | . . . Machines | -11 -10 -10 ---------- Run | Yrd Mat Sub Machines Disabled 5 | . 5 . Max in Single Turn 2 | . 2 . Machines Repaired . | . . . Machines Dismantled . | . . . Machines Sabotaged . | . . . Overloaded Fab Kills . | . . . Hacking | -11 -10 -10 --------- Run | Yrd Mat Sub Machines Accessed 9 | . 9 . Terminals 6 | . 6 . Fabricators . | . . . Repair Stations 1 | . 1 . Recycling Units 2 | . 2 . Scanalyzers . | . . . Garrison Access . | . . . Total Hacks 34 | . 34 . Successful 22 | . 22 . Failed 11 | . 11 . Catastrophic 2 | . 2 . Database Lockouts 1 | . 1 . Manual 15 | . 15 . Terminals 22 | . 22 . Fabricators . | . . . Repair Stations 8 | . 8 . Recycling Units 4 | . 4 . Scanalyzers . | . . . Garrison Access . | . . . Terminal Hacks 6 | . 6 . Robot Analysis 3 | . 3 . Locate Traps 2 | . 2 . Zone Layout 1 | . 1 . Fabricator Hacks . | . . . Repair Station Hacks 8 | . 8 . Scan Component 4 | . 4 . Repair 4 | . 4 . Recycling Unit Hacks 2 | . 2 . Retrieve Components 2 | . 2 . Scanalyzer . | . . . Garrison Access Hacks . | . . . Unauthorized Hacks 6 | . 6 . Terminals 6 | . 6 . Assimilate 2 | . 2 . Botnet 3 | . 3 . Disrupt 1 | . 1 . Fabricators . | . . . Repair Stations . | . . . Recycling Units . | . . . Scanalyzers . | . . . Garrison Access . | . . . Data Cores Recovered . | . . . Used . | . . . Hacking Detections 6 | . 6 . Full Trace Events 1 | . 1 . Feedback Events . | . . . Feedback Blocked . | . . . Robot Schematics Acquired . | . . . Robots Built . | . . . Authchips . | . . . Time . | . . . Total Robot Build Rating . | . . . Part Schematics Acquired . | . . . Parts Built . | . . . Authchips . | . . . Time . | . . . Total Part Build Rating . | . . . Parts Repaired 4 | . 4 . Time 104 | . 104 . Parts Recycled . | . . . Recycled Matter . | . . . Retrieved Matter . | . . . Retrieved Components 3 | . 3 . Parts Scanalyzed . | . . . Part Schematics Acquired . | . . . Parts Damaged . | . . . Bothacking | -11 -10 -10 ------------ Run | Yrd Mat Sub Used RIF Installer . | . . . Robots Hacked . | . . . Non-combat . | . . . Combat . | . . . Robot Hacks Applied . | . . . Relay Couplers Released . | . . . Fabnet Peak Effective % . | . . . Robots Rewired . | . . . Allies Hacked . | . . . Hacks Repelled . | . . . Allies | -11 -10 -10 -------- Run | Yrd Mat Sub Total Allies 1 | . 1 . Largest Group 1 | . 1 1 Highest-Rated Group 10 | . 10 10 Highest-Rated Ally 10 | . 10 10 Total Orders . | . . . Ally Attacks . | . . . Total Damage . | . . . Kills . | . . . Allies Corrupted . | . . . Allies Melted . | . . . Intel | -11 -10 -10 ------- Run | Yrd Mat Sub Robot Analysis Total 3 | . 3 . Derelict Logs Recovered . | . . . Drone Launches . | . . . Drone Recoveries . | . . . Exploration | -11 -10 -10 ------------- Run | Yrd Mat Sub Turns Passed 3316 | 70 1514 1732 Spaces Moved 1661 | 51 738 872 Core 1 | 1 . . Treads 1535 | 2 672 861 Legs . | . . . Wheels 125 | 48 66 11 Hover . | . . . Flight . | . . . Fastest Speed 50 | 50 95 110 Average Speed 155 | 93 154 159 Slowest Speed 240 | 160 160 240 Overloaded Moves . | . . . Propulsion Burnouts . | . . . Robots Hopped . | . . . Cave-ins Triggered . | . . . Exploration Rate (%) 45 | 4 98 35 Regions Visited 2 Branch Regions 1 Pre-discovered Areas 1 | . . 1 Known Exits Taken . | . . . Unknown Exits Taken 2 | 1 1 . Scrap Searched 8 | . . 8 Spaces Dug 16 | . 2 14 Terrain Destroyed 207 | . 90 117 Melee 16 | . 2 14 Projectile . | . . . AOE 191 | . 88 103 Terrain Rammed . | . . . Walls Destroyed . | . . . Machines Disabled . | . . . Actions | -11 -10 -10 --------- Run | Yrd Mat Sub Total 2160 | 64 990 1106 Wait 277 | . 164 113 Move 1659 | 50 737 872 Hop . | . . . Pick Up 28 | 3 10 15 Fast Attach 9 | 7 2 . Attach 4 | . . 4 Detach . | . . . Swap 17 | 2 6 9 Drop 13 | . 3 10 Fire 57 | 2 27 28 Melee 96 | . 41 55 Ram . | . . . Kick . | . . . Crush . | . . . Escape Stasis . | . . . Rewire . | . . . Trap . | . . . Miscellaneous . | . . . Route ------- -11/Scrapyard -10/Materials (discovered 6 exits: [*Mat x3] / [*Min x2] / [*Sub]) -10/Subcaves History --------- Turn | Location | Event 14 | -11/Scrapyard | Discovered new exit (range 15) 71 | -11/Scrapyard | Entered Materials 120 | -10/Materials | Discovered new exit (range 14) 314 | -10/Materials | Build established: Mutant 427 | -10/Materials | Central database locked down 476 | -10/Materials | Discovered new exit (range 7) 1013 | -10/Materials | Discovered new exit (range 11) 1162 | -10/Materials | Discovered new exit (range 14) 1268 | -10/Materials | Repaired Lgt. Treads 1296 | -10/Materials | Repaired Assault Rifle 1323 | -10/Materials | Repaired Grenade Launcher 1350 | -10/Materials | Repaired Med. Laser? 1511 | -10/Materials | Discovered new exit (range 4) 1562 | -10/Materials | Discovered new exit (range 13) 1585 | -10/Materials | Entered Subcaves 1585 | -10/Subcaves | Accompanied by 1 ally 1586 | -10/Subcaves | Shifting Twisted Machinery released Mak. Flight Unit 1615 | -10/Subcaves | Shifting Twisted Machinery released Scrap Shield 1626 | -10/Subcaves | Learned location of Zion (-7) 1626 | -10/Subcaves | Met a Zionite searching for "candidates" 1707 | -10/Subcaves | Lost 3 allies 1885 | -10/Subcaves | Shifting Twisted Machinery released Battle Rifle 1978 | -10/Subcaves | Shifting Twisted Machinery released Scrap Shield 3238 | -10/Subcaves | Core integrity fell below 50% 3268 | -10/Subcaves | Core integrity fell below 20% 3306 | -10/Subcaves | Lost 4 parts (1p1n1u1w) 3317 | -10/Subcaves | Destroyed by TC-Y3K(R) with Subdweller Machine Gun Last Messages --------------- 03246_ QL-EIN(R) knocked back. 03251_ Lgt. Treads destroyed. 03252_ Destroyed Sub. Optics. 03252_ QL-EIN(R) system corrupted by crushing effect. 03254_ Disposable Heat Sink fried. 03254_ QL-EIN(R) destroyed. 03256_ Acquired 22 matter. 03264_ N3-1FR(R) affixes Scrap Shield Fragment to Scrap Shield. 03269_ Seismic Detector destroyed. 03273_ Destroyed Sub. Optics. 03273_ N3-1FR(R) system corrupted by crushing effect. 03275_ Ion Engine destroyed. 03277_ N3-1FR(R) destroyed. 03288_ Acquired 10 matter. 03314_ Destroyed Disposable Heat Sink. 03314_ TC-Y3K(R) system corrupted by crushing effect. Map ----- +----------------------------------------------------+ | ??## ##?????????????????????????????????? | | ??# ###??????????????????????????????????? | | ??# #????????????????????????????????????? | | #?# #????????????????????????????????????? | | ### #????????????????????????????????????? | | ### ##????????????????????????????????????? | | ####?# #?????????????????????????????????????? | | #??### #?????????????????????????????????????? | | # #?## ##????????????????????????????????????? | | # ### ##?#####?????????????????????????????? | | ## ### #"#?????????????????????????????? | | ## ###????????????????????????????? | | "#????????????????????????????? | | # ##???????????????????????????## | | ## ##????????????????????????????# | | ## ##?????????????????????????????# | | # #??????????????????????????????# | | #??????????????????????????????# | | # ##?????????????????????????###### | | #### ####?????????????####?????## # #" | | ## ############### ###??## "" | | # ## # # # # #### " | | # ## | | ######## ### #### | | ???????#### # #### #R # ##??# | | ?????### ### ####??# @ #### # "#???? | | ????## ### ##????## ##""## ## ""#### | | #???# ## #???## #"&%"# ####" "" # | | #??## ##??## #"%="# ####???#" | | #??# ##??## ##" %# #???????# | | #??# ######???# ###[[ #???????# #""## | | ???########????????###### * #???????###? ?### | | ????????????????????????##########???????????????? | | ?????????????????????????????????????????????????? | | ?????????????????????????????????????????????????? | | ?????????????????????????????????????????????????? | | ?????????????????????????????????????????????????? | | ?????????????????????????????????????????????????? | | ?????????????????????????????????????????????????? | | ?????????????????????????????????????????????????? | | ?????????????????????????????????????????????????? | | ?????????????????????????????????????????????????? | | ?????????????????????????????????????????????????? | | ?????????????????????????????????????????????????? | | ?????????????????????????????????????????????????? | | ?????????????????????????????????????????????????? | | | | | | | | | +----------------------------------------------------+ Best States ------------- Heat Dissipation 25 Energy Generation 14 Energy Capacity 250 Matter Stores 300 Matter Capacity 300 Sight Range 16 Terrain Scan Density 10 Armor Coverage 100 Resistance: KI 10 Evasion (%) 44 Recoil Reduction 2 Item Schematics ----------------- None Robot Schematics ------------------ None Fabricated ------------ Nothing Alien Tech Used ----------------- None Achievements -------------- None Challenges ------------ None Game ------ Seed GrapheneMasterBotcube Manual? 0 Play Time 00:26:40 Cumulative 281.6 hours Start 2024.08.06 @ 19:22:17 End 2024.08.06 @ 19:47:13 Sessions 1 Manual Loads 0 Difficulty Rogue Special Mode None Game No. 109 Rogue 107 Adventurer 0 Explorer 2 Win Type - Total 7 Types 5/0/1/1/0/0/0/0/0 Lore% 60 Gallery% 77 Achievement% 72 Wizard Run 0 Options --------- Layout 2 ASCII 0 Keyboard 0 Movement Numpad Keybinds 0 Fullscreen 1 Font 24/Smallcaps Map View 50x44 Zoom Use 0% Tactical HUD 1 Map Filters NONE Filters NONE Steam 0 RUN: 07e34386-0e91-4293-a849-3b5a84e6ca36